bitfinex-derivatives/quotes_BTCF0:USTF0_20241110
["timestamp","ask_amount","ask_price","bid_price","bid_amount"]
[1731199273273,0.2612542,76823.0,76822.0,0.0019523]
[1731199275767,0.1962062,76823.0,76822.0,0.0019523]
[1731199276170,0.19638466,76824.0,76822.0,0.0670013]
[1731199276373,0.1122366,76825.0,76822.0,0.0670013]
[1731199276673,0.1955718,76824.0,76823.0,0.065048]
[1731199283372,0.26765774,76824.0,76823.0,0.065048]
[1731199285868,0.26765774,76824.0,76823.0,0.16396577]
[1731199286177,0.26765774,76824.0,76823.0,0.065048]
[1731199286375,0.26765774,76824.0,76823.0,0.16394931]
[1731199286774,0.26765774,76824.0,76823.0,0.16385847]
[1731199287172,0.26765774,76824.0,76823.0,0.16392241]
[1731199292878,0.26765774,76824.0,76823.0,0.065048]
[1731199293772,0.3608,76833.0,76823.0,0.065048]
[1731199293974,0.3608,76833.0,76832.0,0.065041]
[1731199294384,0.55509072,76833.0,76832.0,0.065041]
[1731199295088,0.62717666,76833.0,76832.0,0.065041]
[1731199295782,0.55509072,76833.0,76832.0,0.065041]
[1731199295981,0.07208594,76840.0,76832.0,0.3608]
[1731199296171,0.0935,76853.0,76832.0,0.3608]
[1731199296375,0.0935,76853.0,76839.0,0.3608]
[1731199296376,0.07208594,76845.0,76839.0,0.3608]
[1731199296577,0.07208594,76841.0,76840.0,0.065034]
[1731199296978,0.26803336,76841.0,76840.0,0.065034]
[1731199299086,0.3608,76847.0,76845.0,0.06503]
[1731199299289,0.07208594,76846.0,76845.0,0.06503]
[1731199299489,0.26660886,76846.0,76845.0,0.06503]
[1731199300682,0.19452292,76846.0,76845.0,0.06503]
[1731199301082,0.19421312,76848.0,76847.0,0.065027]
[1731199301387,0.10202447,76849.0,76847.0,0.065027]
[1731199301780,0.19403265,76848.0,76847.0,0.065027]
[1731199302979,0.3608,76854.0,76844.0,0.07208594]
[1731199303284,0.0321,76859.0,76858.0,0.065019]
[1731199303687,0.22787511,76859.0,76858.0,0.065019]
[1731199304391,0.29996105,76859.0,76846.0,0.3608]
[1731199304585,0.07208594,76848.0,76846.0,0.065029]
[1731199305093,0.19525029,76847.0,76846.0,0.065029]
[1731199305386,0.07208594,76852.0,76851.0,0.065025]
[1731199305892,0.26787228,76852.0,76851.0,0.065025]
[1731199307292,0.19578634,76852.0,76851.0,0.065025]
[1731199307791,0.3608,76853.0,76846.0,0.3608]
[1731199307994,0.02512477,76852.0,76851.0,0.065025]
[1731199308185,0.3608,76853.0,76846.0,0.3608]
[1731199308382,0.3608,76853.0,76852.0,0.065024]
[1731199308579,0.38592552,76853.0,76852.0,0.065024]
[1731199309093,0.38592552,76853.0,76846.0,0.3608]
[1731199309094,0.5823452,76853.0,76846.0,0.425829]
[1731199309389,0.11219294,76847.0,76846.0,0.425829]
[1731199309790,0.30823216,76847.0,76846.0,0.425829]
[1731199312898,0.19603922,76847.0,76846.0,0.425829]
[1731199313191,0.3929,76859.0,76846.0,0.3608]
[1731199313390,0.02512548,76858.0,76855.0,0.065021]
[1731199313695,0.02512548,76857.0,76855.0,0.065021]
[1731199314095,0.19428452,76856.0,76855.0,0.065021]
[1731199314284,0.19428452,76856.0,76850.0,0.065025]
[1731199314285,0.284431,76856.0,76850.0,0.065025]
[1731199314481,0.11219294,76851.0,76850.0,0.065025]
[1731199314793,0.11219294,76851.0,76846.0,0.3608]
[1731199314794,0.30684335,76851.0,76846.0,0.3608]
[1731199314991,0.30684335,76851.0,76844.0,0.06503]
[1731199314992,0.065027,76849.0,76844.0,0.06503]
[1731199315193,0.065027,76849.0,76840.0,0.14256]
[1731199315387,0.19465041,76848.0,76847.0,0.065028]
[1731199319492,0.0637,76881.0,76877.0,0.065002]
[1731199319900,0.0637,76881.0,76871.0,0.3608]
[1731199319901,0.25948733,76881.0,76871.0,0.3608]
[1731199320086,0.1287,76881.0,76873.0,0.065006]
[1731199320292,0.11219294,76877.0,76873.0,0.065006]
[1731199320591,0.19578733,76876.0,76873.0,0.065006]
[1731199321190,0.19578733,76876.0,76871.0,0.3608]
[1731199321393,0.19578733,76876.0,76874.0,0.065005]
[1731199324699,0.19578733,76876.0,76871.0,0.3608]
[1731199324700,0.19578733,76876.0,76875.0,0.065004]
[1731199324903,0.0637,76881.0,76875.0,0.065004]
[1731199325089,0.0637,76881.0,76880.0,0.065]
[1731199326000,0.11219294,76891.0,76875.0,0.065004]
[1731199326298,0.11219294,76891.0,76890.0,0.064992]
[1731199326802,0.30669203,76891.0,76890.0,0.064992]
[1731199327199,0.19449909,76891.0,76890.0,0.064992]
[1731199329296,0.0635,76892.0,76890.0,0.064992]
[1731199329999,0.11219294,76891.0,76890.0,0.064992]
[1731199330199,0.30823585,76891.0,76890.0,0.064992]
[1731199331206,0.33334898,76891.0,76890.0,0.064992]
[1731199332404,0.39833998,76891.0,76890.0,0.064992]
[1731199333898,0.37322685,76891.0,76890.0,0.064992]
[1731199334103,0.39834003,76891.0,76890.0,0.064992]
[1731199334304,0.37322685,76891.0,76890.0,0.064992]
[1731199336918,0.30823585,76891.0,76890.0,0.064992]
[1731199340300,0.37322685,76891.0,76890.0,0.064992]
[1731199342611,0.19604291,76891.0,76890.0,0.064992]
[1731199344596,0.19604291,76891.0,76889.0,0.3608]
[1731199344597,0.3608,76896.0,76889.0,0.3608]
[1731199344810,0.3608,76896.0,76895.0,0.064987]
[1731199345310,0.55652337,76896.0,76895.0,0.064987]
[1731199346206,0.58163502,76896.0,76895.0,0.064987]
[1731199346509,0.1301,76900.0,76899.0,0.064984]
[1731199346699,0.1552101,76900.0,76899.0,0.064984]
[1731199346905,0.3491255,76900.0,76899.0,0.064984]
[1731199347307,0.3240154,76900.0,76899.0,0.064984]
[1731199347602,0.34912497,76900.0,76899.0,0.064984]
[1731199351310,0.41410797,76900.0,76899.0,0.064984]
[1731199351517,0.064985,76898.0,76897.0,0.3608]
[1731199351706,0.09009457,76898.0,76897.0,0.425786]
[1731199351906,0.28389842,76898.0,76897.0,0.425786]
[1731199353120,0.25878885,76898.0,76897.0,0.425786]
[1731199353921,0.25878885,76898.0,76897.0,0.064986]
[1731199359717,0.19380385,76898.0,76897.0,0.064986]
[1731199360117,0.19521487,76899.0,76898.0,0.064984]
[1731199360325,0.1301,76900.0,76889.0,0.3608]
[1731199360618,0.1301,76900.0,76899.0,0.064984]
[1731199361017,0.29485969,76900.0,76899.0,0.064984]
[1731199362319,0.1,76900.0,76899.0,0.064984]
[1731199363520,0.1,76900.0,76899.0,0.17717694]
[1731199363721,0.1,76900.0,76899.0,0.21599504]
[1731199364928,0.1,76900.0,76899.0,0.1038021]
[1731199365119,0.1,76900.0,76899.0,0.064984]
[1731199366423,0.164983,76900.0,76899.0,0.064984]
[1731199367025,0.1,76900.0,76899.0,0.17717694]
[1731199368230,0.15693809,76900.0,76899.0,0.17717694]
[1731199369638,0.15693809,76900.0,76899.0,0.064984]
[1731199369639,0.12510788,76900.0,76899.0,0.064984]
[1731199370033,0.15693846,76900.0,76899.0,0.064984]
[1731199371542,0.12510788,76900.0,76899.0,0.064984]
[1731199372243,0.19683171,76900.0,76899.0,0.064984]
[1731199372449,0.19683129,76900.0,76899.0,0.064984]
[1731199372743,0.15693659,76900.0,76899.0,0.064984]
[1731199376339,0.1,76900.0,76899.0,0.064984]
[1731199383240,0.19683353,76900.0,76899.0,0.064984]
[1731199384851,0.15693717,76900.0,76899.0,0.425784]
[1731199386356,0.19683334,76900.0,76899.0,0.425784]
[1731199389453,0.15693717,76900.0,76899.0,0.425784]
[1731199391346,0.164983,76900.0,76899.0,0.425784]
[1731199395556,0.1,76900.0,76899.0,0.425784]
[1731199398464,0.1569354,76900.0,76899.0,0.425784]
[1731199401867,0.19683079,76900.0,76899.0,0.425784]
[1731199404260,0.19683055,76900.0,76899.0,0.425784]
[1731199404656,0.1569354,76900.0,76899.0,0.425784]
[1731199406366,0.1,76900.0,76899.0,0.425784]
[1731199408355,0.1,76900.0,76899.0,0.46468219]
[1731199410461,0.1,76900.0,76899.0,0.425784]
[1731199415768,0.1,76900.0,76899.0,0.46468219]
[1731199415974,0.1,76900.0,76899.0,0.425784]
[1731199418572,0.1,76900.0,76899.0,0.46468219]
[1731199419969,0.1,76900.0,76899.0,0.425784]
[1731199420176,0.3608,76918.0,76913.0,0.064972]
[1731199420474,0.09030572,76914.0,76913.0,0.064972]
[1731199421064,0.0652,76914.0,76913.0,0.064972]
[1731199421569,0.16202137,76914.0,76913.0,0.064972]
[1731199421775,0.12213002,76914.0,76913.0,0.064972]
[1731199421978,0.16202137,76914.0,76913.0,0.064972]
[1731199423876,0.12213002,76914.0,76913.0,0.064972]
[1731199424076,0.16202056,76914.0,76913.0,0.064972]
[1731199424279,0.14264339,76929.0,76913.0,0.46196757]
[1731199424492,0.12967581,76930.0,76929.0,0.064959]
[1731199424672,0.12967581,76933.0,76932.0,0.064956]
[1731199424980,0.0324,76934.0,76932.0,0.174436]
[1731199425172,0.0324,76934.0,76933.0,0.3608]
[1731199430775,0.0324,76934.0,76933.0,0.43272757]
[1731199431371,0.0324,76934.0,76933.0,0.49768257]
[1731199436488,0.0324,76934.0,76933.0,0.425755]
[1731199437874,0.174134,76958.0,76941.0,0.064949]
[1731199438079,0.174134,76958.0,76933.0,0.43272757]
[1731199438080,0.08629531,76956.0,76952.0,0.07192757]
[1731199438283,0.25495266,76956.0,76952.0,0.064939]
[1731199438474,0.064938,76954.0,76946.0,0.064944]
[1731199438790,0.3608,76949.0,76945.0,0.064945]
[1731199439176,0.19422564,76948.0,76945.0,0.064945]
[1731199440981,0.3608,76949.0,76948.0,0.064943]
[1731199443479,0.41770507,76949.0,76948.0,0.064943]
[1731199444484,0.05690507,76949.0,76948.0,0.064943]
[1731199445080,0.25261276,76949.0,76946.0,0.064944]
[1731199445280,0.05690507,76948.0,76946.0,0.064944]
[1731199445690,0.09677908,76947.0,76942.0,0.3217425]
[1731199445886,0.09677908,76946.0,76945.0,0.064945]
[1731199446085,0.05690507,76946.0,76945.0,0.064945]
[1731199446287,0.05690507,76946.0,76945.0,0.13687257]
[1731199446581,0.05690451,76946.0,76945.0,0.13687257]
[1731199446785,0.02509278,76946.0,76945.0,0.07192757]
[1731199447196,0.02509278,76946.0,76945.0,0.13687257]
[1731199447582,0.0303,76954.0,76953.0,0.064938]
[1731199447781,0.05539191,76954.0,76953.0,0.064938]
[1731199447992,0.08720188,76954.0,76953.0,0.064938]
[1731199450086,0.15912945,76954.0,76953.0,0.064938]
[1731199450497,0.10222757,76954.0,76953.0,0.064938]
[1731199450890,0.0303,76954.0,76953.0,0.064938]
[1731199458692,0.0303,76954.0,76950.0,0.07192757]
[1731199458897,0.14264339,76951.0,76950.0,0.13686857]
[1731199459093,0.23941487,76951.0,76950.0,0.13686857]
[1731199459496,0.09677148,76951.0,76950.0,0.13686857]
[1731199460193,0.09677148,76951.0,76950.0,0.064941]
[1731199462594,0.12882825,76951.0,76950.0,0.064941]
[1731199462793,0.16869906,76951.0,76950.0,0.064941]
[1731199463290,0.32479908,76951.0,76938.0,0.10916]
[1731199463492,0.07192757,76946.0,76945.0,0.064945]
[1731199463698,0.05690068,76946.0,76945.0,0.064945]
[1731199464298,0.09677491,76946.0,76945.0,0.064945]
[1731199464489,0.09677491,76946.0,76944.0,0.064946]
[1731199464689,0.05690068,76945.0,76944.0,0.064946]
[1731199464885,0.05690068,76945.0,76944.0,0.07192757]
[1731199465095,0.0303,76954.0,76950.0,0.06494]
[1731199465293,0.09677744,76953.0,76952.0,0.064939]
[1731199465494,0.1296746,76953.0,76952.0,0.064939]
[1731199465895,0.0303,76954.0,76944.0,0.07192757]
[1731199466094,0.0303,76954.0,76953.0,0.064938]
[1731199467702,0.42268,76956.0,76955.0,0.064937]
[1731199467996,0.422,76956.0,76955.0,0.064937]
[1731199468198,0.44709115,76956.0,76955.0,0.064937]
[1731199468592,0.16805557,76965.0,76952.0,0.07192757]
[1731199468593,0.0312,76965.0,76952.0,0.07192757]
[1731199468802,0.0312,76965.0,76950.0,0.43272757]
[1731199468803,0.02508962,76964.0,76958.0,0.07192757]
[1731199468999,0.02508962,76963.0,76959.0,0.064933]
[1731199469707,0.02508976,76962.0,76959.0,0.064933]
[1731199469890,0.02508976,76961.0,76959.0,0.064933]
[1731199470095,0.19605826,76964.0,76959.0,0.064933]
[1731199470299,0.0250898,76963.0,76959.0,0.064933]
[1731199470498,0.0250898,76962.0,76959.0,0.064933]
[1731199470690,0.0250898,76961.0,76959.0,0.064933]
[1731199470892,0.0322,76965.0,76963.0,0.06493]
[1731199471097,0.02508961,76964.0,76963.0,0.06493]
[1731199472000,0.02508961,76964.0,76955.0,0.10896]
[1731199472192,0.07192757,76961.0,76957.0,0.064935]
[1731199472396,0.07192757,76961.0,76955.0,0.10896]
[1731199472702,0.07192757,76961.0,76959.0,0.064933]
[1731199473703,0.07192757,76961.0,76955.0,0.10896]
[1731199473704,0.09676522,76960.0,76955.0,0.10896]
[1731199473905,0.09676522,76959.0,76957.0,0.064935]
[1731199474095,0.09676522,76958.0,76957.0,0.064935]
[1731199474297,0.06495798,76958.0,76957.0,0.064935]
[1731199474510,0.09676522,76958.0,76957.0,0.064935]
[1731199474694,0.056897,76958.0,76957.0,0.064935]
[1731199474905,0.09676522,76958.0,76957.0,0.064935]
[1731199477004,0.16787108,76958.0,76957.0,0.425735]
[1731199478007,0.16787108,76958.0,76957.0,0.064935]
[1731199478207,0.16787108,76958.0,76957.0,0.425735]
[1731199478605,0.09676522,76958.0,76957.0,0.425735]
[1731199478999,0.09676294,76958.0,76957.0,0.425735]
[1731199480203,0.09676293,76958.0,76957.0,0.425735]
[1731199480605,0.07192757,76964.0,76958.0,0.064934]
[1731199480806,0.02508916,76963.0,76959.0,0.064933]
[1731199481117,0.02508916,76962.0,76959.0,0.064933]
[1731199481303,0.13685657,76964.0,76959.0,0.064933]
[1731199481499,0.07192757,76964.0,76957.0,0.3608]
[1731199481704,0.02508917,76963.0,76962.0,0.064931]
[1731199482208,0.02508917,76963.0,76962.0,0.04394432]
[1731199484413,0.09701674,76963.0,76957.0,0.49766157]
[1731199484625,0.02508917,76962.0,76957.0,0.49766157]
[1731199484810,0.07192757,76963.0,76957.0,0.49766157]
[1731199485010,0.02508898,76962.0,76957.0,0.49766157]
[1731199485207,0.02508898,76961.0,76957.0,0.49766157]
[1731199485404,0.07192757,76963.0,76957.0,0.49766157]
[1731199485605,0.02508897,76962.0,76958.0,0.064934]
[1731199485801,0.07192757,76963.0,76958.0,0.064934]
[1731199486007,0.02508897,76962.0,76959.0,0.064933]
[1731199486210,0.07192757,76963.0,76960.0,0.064932]
[1731199486410,0.0250888,76962.0,76960.0,0.064932]
[1731199486912,0.097129,76965.0,76961.0,0.064931]
[1731199487113,0.02508865,76964.0,76961.0,0.064931]
[1731199487317,0.02508865,76963.0,76961.0,0.064931]
[1731199487520,0.02508865,76962.0,76961.0,0.064931]
[1731199487910,0.02508865,76964.0,76961.0,0.064931]
[1731199488109,0.097129,76965.0,76961.0,0.064931]
[1731199488110,0.02508865,76963.0,76961.0,0.064931]
[1731199488310,0.02508865,76962.0,76961.0,0.064931]
[1731199488511,0.097129,76965.0,76961.0,0.064931]
[1731199488713,0.09676182,76964.0,76961.0,0.064931]
[1731199488918,0.02508888,76963.0,76961.0,0.064931]
[1731199489111,0.14277177,76964.0,76957.0,0.39367578]
[1731199489112,0.09676182,76962.0,76957.0,0.39367578]
[1731199489420,0.09676182,76961.0,76957.0,0.39367578]
[1731199489619,0.14271299,76961.0,76957.0,0.39367578]
[1731199489826,0.097129,76965.0,76959.0,0.064933]
[1731199489827,0.09676182,76960.0,76959.0,0.064933]
[1731199492329,0.14271299,76960.0,76959.0,0.064933]
[1731199493012,0.14271299,76960.0,76954.0,0.10892]
[1731199493013,0.14271299,76960.0,76953.0,0.07192757]
[1731199493216,0.02508888,76959.0,76958.0,0.064934]
[1731199493414,0.09676182,76959.0,76958.0,0.064934]
[1731199493718,0.02508888,76959.0,76958.0,0.04578058]
[1731199493917,0.09676182,76959.0,76958.0,0.04578058]
[1731199495721,0.02508888,76959.0,76958.0,0.04578058]
[1731199496521,0.02508963,76962.0,76960.0,0.064932]
[1731199496822,0.02508963,76961.0,76960.0,0.064932]
[1731199498921,0.02508963,76961.0,76955.0,0.3608]
[1731199499224,0.09002263,76960.0,76959.0,0.064933]
[1731199499916,0.02508963,76960.0,76955.0,0.3608]
[1731199500117,0.064934,76958.0,76956.0,0.064935]
[1731199500316,0.064934,76958.0,76944.0,0.07000823]
[1731199500317,0.064939,76953.0,76940.0,0.39950823]
[1731199500625,0.15362963,76952.0,76944.0,0.07192757]
[1731199500828,0.0636,76952.0,76951.0,0.06494]
[1731199501122,0.08869252,76952.0,76951.0,0.06494]
[1731199501425,0.12050329,76952.0,76951.0,0.06494]
[1731199501820,0.05690329,76952.0,76951.0,0.06494]
[1731199502024,0.3608,76961.0,76951.0,0.06494]
[1731199502219,0.02509039,76960.0,76959.0,0.064933]
[1731199502526,0.0250894,76960.0,76959.0,0.064933]
[1731199503425,0.0900224,76960.0,76955.0,0.064936]
[1731199503612,0.07192757,76956.0,76949.0,0.3608]
[1731199503912,0.0250894,76959.0,76951.0,0.06494]
[1731199503913,0.13686657,76952.0,76951.0,0.06494]
[1731199504114,0.13686657,76952.0,76946.0,0.00194914]
[1731199504115,0.07192757,76952.0,76946.0,0.00194914]
[1731199504315,0.3608,76953.0,76946.0,0.00194914]
[1731199504316,0.064944,76947.0,76946.0,0.00194914]
[1731199504519,0.09003635,76947.0,76946.0,0.00194914]
[1731199504929,0.09003635,76947.0,76946.0,0.06689314]
[1731199505430,0.02509235,76947.0,76946.0,0.13882071]
[1731199505618,0.16226584,77427.0,76946.0,0.57154828]
[1731199505619,0.12983071,76964.0,76946.0,0.57154828]
[1731199505928,0.07192757,76964.0,76954.0,0.064938]
[1731199506319,0.3608,76960.0,76954.0,0.064938]
[1731199506833,0.08639032,76955.0,76954.0,0.064938]
[1731199507716,0.08639032,76955.0,76952.0,0.07192757]
[1731199507717,0.3608,76960.0,76953.0,0.064938]
[1731199507916,0.02508981,76959.0,76958.0,0.064934]
[1731199508934,0.02509049,76959.0,76958.0,0.064934]
[1731199509831,0.02509049,76959.0,76953.0,0.07192757]
[1731199510031,0.02509049,76959.0,76954.0,0.064937]
[1731199510032,0.02509049,76958.0,76954.0,0.064937]
[1731199510233,0.064934,76959.0,76954.0,0.064937]
[1731199510528,0.02509041,76958.0,76954.0,0.064937]
[1731199510734,0.09676775,76957.0,76955.0,0.064936]
[1731199511030,0.09676775,76956.0,76946.0,0.47226914]
[1731199511219,0.09676775,76956.0,76951.0,0.06494]
[1731199511220,0.09676775,76955.0,76951.0,0.06494]
[1731199511424,0.16170575,76954.0,76951.0,0.06494]
[1731199511632,0.16171223,76953.0,76951.0,0.04139909]
[1731199511831,0.09677323,76952.0,76951.0,0.04139909]
[1731199512024,0.12937323,76952.0,76951.0,0.04139909]
[1731199514642,0.12937323,76952.0,76951.0,0.02678627]
[1731199515534,0.1293727,76952.0,76951.0,0.02678627]
[1731199518729,0.0326,76952.0,76951.0,0.02678627]
[1731199520331,0.0326,76952.0,76951.0,0.0655174]
[1731199521029,0.0326,76952.0,76951.0,0.02678627]
[1731199522332,0.3608,76960.0,76950.0,0.07192757]
[1731199522633,0.3608,76960.0,76959.0,0.064933]
[1731199528032,0.3608,76960.0,76959.0,0.11657451]
[1731199529230,0.3608,76960.0,76959.0,0.18850208]
[1731199529435,0.3608,76960.0,76959.0,0.13686057]
[1731199530330,0.3608,76960.0,76959.0,0.18850208]
[1731199530640,0.3608,76967.0,76959.0,0.13686057]
[1731199530831,0.36156,76975.0,76974.0,0.064921]
[1731199530832,0.3608,76975.0,76974.0,0.064921]
[1731199531437,0.42778,76985.0,76974.0,0.49764857]
[1731199531748,0.4271,76985.0,76984.0,0.064912]
[1731199532342,0.49902757,76985.0,76984.0,0.064912]
[1731199532548,0.49902757,76985.0,76984.0,0.10360469]
[1731199532742,0.4271,76985.0,76984.0,0.064912]
[1731199533855,0.02508294,76985.0,76984.0,0.064912]
[1731199535349,0.02508294,76985.0,76981.0,0.07192757]
[1731199535350,0.3608,76989.0,76987.0,0.06491]
[1731199535543,0.3608,76989.0,76988.0,0.07192757]
[1731199537164,0.3608,77005.0,76988.0,0.14385514]
[1731199537346,0.1,77000.0,76996.0,0.064901]
[1731199537544,0.1,77000.0,76989.0,0.0307]
[1731199537545,0.1,77000.0,76997.0,0.07192757]
[1731199537843,0.1,77000.0,76998.0,0.0649]
[1731199538045,0.1,77000.0,76999.0,0.3608]
[1731199538549,0.1,77000.0,76999.0,0.46928]
[1731199539553,0.1,77000.0,76999.0,0.58102607]
[1731199540545,0.1,77000.0,76999.0,0.3608]
[1731199540845,0.1,77000.0,76999.0,0.46928]
[1731199541048,0.1,77000.0,76999.0,0.3608]
[1731199541355,0.1,77000.0,76999.0,0.46928]
[1731199541556,0.1,77000.0,76999.0,0.3608]
[1731199541762,0.1,77000.0,76999.0,0.46928]
[1731199542049,0.1,77000.0,76999.0,0.44328]
[1731199542249,0.1,77000.0,76999.0,0.10848]
[1731199548056,0.4608,77000.0,76999.0,0.10848]
[1731199548260,0.1,77000.0,76999.0,0.10848]
[1731199549849,0.57254607,77000.0,76979.0,0.00076]
[1731199550054,0.064911,76985.0,76984.0,0.11174607]
[1731199550558,0.064911,76985.0,76984.0,0.22018607]
[1731199550859,0.064911,76985.0,76984.0,0.11174607]
[1731199551160,0.064911,76985.0,76984.0,0.22018607]
[1731199551558,0.064911,76985.0,76984.0,0.11174607]
[1731199551857,0.3608,76989.0,76984.0,0.22018607]
[1731199552564,0.3608,76989.0,76985.0,0.064911]
[1731199552954,0.0634,76991.0,76985.0,0.064911]
[1731199553157,0.0634,76991.0,76990.0,0.11174607]
[1731199554647,0.128306,76991.0,76990.0,0.11174607]
[1731199554851,0.128306,76991.0,76982.0,0.10844]
[1731199554852,0.064912,76985.0,76982.0,0.10844]
[1731199555050,0.064912,76985.0,76980.0,0.11174607]
[1731199555051,0.3608,76983.0,76981.0,0.10844]
[1731199556454,0.489906,76991.0,76981.0,0.10844]
[1731199556655,0.064907,76990.0,76985.0,0.11174607]
[1731199556861,0.064908,76989.0,76985.0,0.11174607]
[1731199557164,0.42488,76991.0,76987.0,0.064909]
[1731199557363,0.42488,76991.0,76985.0,0.11174607]
[1731199557364,0.4242,76991.0,76985.0,0.11174607]
[1731199557555,0.489107,76991.0,76985.0,0.11174607]
[1731199559357,0.4242,76991.0,76990.0,0.17665307]
[1731199559755,0.4242,76991.0,76990.0,0.11174607]
[1731199561466,0.4242,76991.0,76990.0,0.17665307]
[1731199561467,0.3608,76991.0,76990.0,0.17665307]
[1731199561765,0.0421,76999.0,76996.0,0.064902]
[1731199561766,0.0643,76998.0,76996.0,0.064902]
[1731199562172,0.0643,76998.0,76990.0,0.11174607]
[1731199562361,0.0643,76998.0,76996.0,0.064902]
[1731199562875,0.0643,76998.0,76997.0,0.064901]
[1731199563868,0.01,76999.0,76997.0,0.064901]
[1731199566771,0.01,76999.0,76998.0,0.064901]
[1731199570577,0.044997,77000.0,76999.0,0.0649]
[1731199571162,0.044997,77000.0,76999.0,0.11654651]
[1731199571572,0.044997,77000.0,76999.0,0.0649]
[1731199572070,0.044997,77000.0,76999.0,0.11654651]
[1731199572475,0.0332,77010.0,76999.0,0.05164651]
[1731199572674,0.0332,77010.0,77009.0,0.53743707]
[1731199572863,0.0332,77010.0,77009.0,0.64571707]
[1731199573470,0.033,77017.0,77015.0,0.064886]
[1731199577284,0.033,77017.0,77015.0,0.136608]
[1731199578382,0.3608,77018.0,77015.0,0.136608]
[1731199578583,0.3608,77029.0,77015.0,0.136608]
[1731199578584,0.063,77028.0,77015.0,0.136608]
[1731199578785,0.3608,77022.0,77015.0,0.136608]
[1731199580580,0.3608,77029.0,77015.0,0.59785]
[1731199580790,0.0315,77028.0,77015.0,0.526128]
[1731199581086,0.0315,77028.0,77015.0,0.634408]
[1731199581291,0.3608,77045.0,77016.0,0.064885]
[1731199581590,0.00048,77055.0,77037.0,0.038868]
[1731199581591,0.0624,77038.0,77037.0,0.038868]
[1731199581787,0.0624,77038.0,77037.0,0.11059]
[1731199581788,0.0886321,77038.0,77037.0,0.11059]
[1731199582087,0.11497064,77038.0,77037.0,0.1756]
[1731199582292,0.0886321,77038.0,77037.0,0.1756]
[1731199582898,0.0886321,77038.0,77037.0,0.247322]
[1731199583101,0.0580321,77038.0,77037.0,0.1756]
[1731199583291,0.0580321,77038.0,77037.0,0.2155147]
[1731199583595,0.0262321,77038.0,77037.0,0.6049547]
[1731199583793,0.0262321,77038.0,77037.0,0.2155147]
[1731199584095,0.3608,77048.0,77044.0,0.064862]
[1731199585590,0.0458111,77047.0,77044.0,0.064862]
[1731199585792,0.04577981,77046.0,77044.0,0.064862]
[1731199585995,0.01933933,77045.0,77044.0,0.064862]
[1731199586198,0.01933933,77047.0,77038.0,0.077877]
[1731199586399,0.3608,77041.0,77038.0,0.01301]
[1731199586697,0.3608,77041.0,77040.0,0.064865]
[1731199587005,0.38031306,77041.0,77040.0,0.064865]
[1731199589596,0.38031306,77041.0,77035.0,0.01301]
[1731199589797,0.08351306,77040.0,77038.0,0.01301]
[1731199590003,0.01951306,77039.0,77038.0,0.01301]
[1731199590303,0.05111306,77039.0,77038.0,0.01301]
[1731199591007,0.064869,77036.0,77033.0,0.01301]
[1731199591201,0.3608,77034.0,77033.0,0.01301]
[1731199591509,0.38031306,77034.0,77033.0,0.01301]
[1731199591798,0.38031306,77034.0,77027.0,0.06501]
[1731199591998,0.064872,77032.0,77023.0,0.06501]
[1731199592204,0.01951306,77031.0,77030.0,0.06501]
[1731199593705,0.08438606,77031.0,77030.0,0.06501]
[1731199595903,0.08438606,77031.0,77028.0,0.06501]
[1731199596215,0.38031306,77030.0,77014.0,0.1116367]
[1731199596505,0.3608,77017.0,77016.0,0.064885]
[1731199597902,0.064874,77029.0,77015.0,0.0634]
[1731199598101,0.064874,77029.0,77024.0,0.064878]
[1731199598302,0.064874,77029.0,77016.0,0.064885]
[1731199598503,0.3608,77022.0,77021.0,0.064881]
[1731199598704,0.37858672,77022.0,77021.0,0.064881]
[1731199599308,0.37858672,77022.0,77014.0,0.1116367]
[1731199599605,0.01779149,77021.0,77014.0,0.1116367]
[1731199599799,0.01779149,77020.0,77019.0,0.064883]
[1731199600405,0.01779149,77020.0,77014.0,0.1116367]
[1731199600701,0.064881,77021.0,77019.0,0.064883]
[1731199600902,0.01780393,77020.0,77019.0,0.064883]
[1731199601299,0.08268593,77020.0,77019.0,0.064883]
[1731199601500,0.08268593,77020.0,77013.0,0.064887]
[1731199601501,0.064885,77017.0,77013.0,0.064887]
[1731199601712,0.3608,77014.0,77013.0,0.064887]
[1731199602106,0.37860393,77014.0,77013.0,0.038887]
[1731199603710,0.3608,77014.0,77013.0,0.038887]
[1731199604006,0.0328,77024.0,77010.0,0.10812]
[1731199604007,0.064882,77020.0,77017.0,0.064884]
[1731199604200,0.064882,77020.0,77008.0,0.1116367]
[1731199604398,0.064882,77020.0,77019.0,0.064883]
[1731199604608,0.09094512,77020.0,77019.0,0.064883]
[1731199605410,0.3608,77022.0,77020.0,0.064882]
[1731199606103,0.42568,77022.0,77020.0,0.064882]
[1731199606710,0.02582831,77021.0,77020.0,0.064882]
[1731199606913,0.3608,77022.0,77020.0,0.064882]
[1731199609313,0.3608,77022.0,77020.0,0.13659332]
[1731199609911,0.3608,77022.0,77020.0,0.064882]
[1731199610116,0.42568,77022.0,77020.0,0.064882]
[1731199610514,0.42568,77022.0,77016.0,0.24471632]
[1731199610816,0.42568,77022.0,77019.0,0.064883]
[1731199611013,0.42568,77022.0,77016.0,0.17983132]
[1731199611314,0.3608,77022.0,77016.0,0.17983132]
[1731199611517,0.3608,77022.0,77021.0,0.064881]
[1731199612104,0.064875,77029.0,77025.0,0.064878]
[1731199612309,0.064875,77029.0,77024.0,0.07171132]
[1731199612506,0.3608,77030.0,77024.0,0.07171132]
[1731199612711,0.43251132,77030.0,77023.0,0.064879]
[1731199613008,0.3608,77030.0,77019.0,0.07171132]
[1731199613205,0.3608,77030.0,77028.0,0.064875]
[1731199613206,0.425674,77030.0,77028.0,0.064875]
[1731199613609,0.064874,77029.0,77028.0,0.064875]
[1731199614516,0.3608,77030.0,77024.0,0.07171132]
[1731199614517,0.064877,77026.0,77024.0,0.07171132]
[1731199614712,0.064878,77025.0,77024.0,0.13659032]
[1731199615114,0.3608,77030.0,77024.0,0.13659032]
[1731199615618,0.064877,77026.0,77024.0,0.13659032]